[Event "Festival Groningen-A 2024"]
[Site "Groningen"]
[Date "2024.12.28"]
[Round "7.18"]
[White "Ten Dam, Bram"]
[Black "Madularea, David"]
[Result "1/2-1/2"]
[ECO "B46"]
[WhiteElo "2002"]
[BlackElo "2245"]
[Annotator "RC"]
[PlyCount "74"]
[EventDate "2024.12.21"]
[EventType "swiss"]
[EventCountry "NED"]
[SourceTitle "playchess.com"]
[Source "ChessBase"]
[SourceQuality "1"]
[TimeControl "40/5400+30:1800+30"]

1. e4 {[%emt 0:00:04]} c5 {[%emt 0:00:03]} 2. Nf3 {[%emt 0:00:05]} e6 {[%emt 0:00:03]} 3. d4 {[%emt 0:00:08]} cxd4 {[%emt 0:00:03]} 4. Nxd4 {[%emt 0:00:08]} Nc6 {[%emt 0:00:03]} 5. Nc3 {[%emt 0:00:09]} a6 {[%emt 0:00:02]} 6. Be3 {[%emt 0:00:47]} Nf6 {[%emt 0:00:04]} 7. Bd3 {[%emt 0:00:28]} Ne5 {[%emt 0:00:03]} 8. h3 {[%emt 0:00:36]} b5 {[%emt 0:00:25]} 9. f4 {[%emt 0:01:14]} Nxd3+ {[%emt 0:00:29]} 10. cxd3 {[%emt 0:01:10]} Bb7 {[%emt 0:02:12]} 11. O-O {[%emt 0:02:50]} Rc8 {[%emt 0:07:03]} 12. Qd2 {[%emt 0:10:48]} Be7 {[%emt 0:04:35]} 13. Rac1 {[%emt 0:02:26]} O-O {[%emt 0:02:16]} 14. g4 {[%emt 0:06:37]} d6 {[%emt 0:16:13]} 15. a4 {[%emt 0:04:30]} b4 {[%emt 0:01:09]} 16. Nce2 {[%emt 0:01:36]} Qd7 {[%emt 0:00:34]} 17. b3 {[%emt 0:01:32]} a5 {[%emt 0:03:56]} 18. Nf3 {[%emt 0:02:52]} Rxc1 {[%emt 0:05:23]} 19. Rxc1 {[%emt 0:00:08]} Rc8 {[%emt 0:00:20]} 20. Rxc8+ {[%emt 0:01:44]} Qxc8 {[%emt 0:00:10]} 21. g5 {[%emt 0:00:55]} Nd7 {[%emt 0:00:49]} 22. Qc1 {[%emt 0:00:34]} Nc5 {[%emt 0:03:07]} 23. Bxc5 {[%emt 0:05:49]} dxc5 {[%emt 0:02:36]} 24. Ne5 {[%emt 0:00:47]} Qd8 {[%emt 0:07:53]} 25. Qe3 {[%emt 0:02:14]} Qc7 {[%emt 0:10:46]} 26. Nc4 {[%emt 0:01:15]} Bc6 {[%emt 0:00:43]} 27. Kf2 {[%emt 0:02:00]} Be8 {[%emt 0:01:54]} 28. h4 {[%emt 0:06:48]} h6 {[%emt 0:01:16]} 29. Ng3 {[%emt 0:03:41]} hxg5 {[%emt 0:01:12]} 30. hxg5 {[%emt 0:00:09]} f6 {[%emt 0:02:37]} 31. gxf6 {[%emt 0:01:00]} Bxf6 {[%emt 0:00:28]} 32. e5 {[%emt 0:00:47]} Bh4 {[%emt 0:01:08]} 33. Kg2 {[%emt 0:05:59]} Bc6+ {[%emt 0:04:27]} 34. Kh3 {[%emt 0:01:15]} Bd8 {[%emt 0:00:37]} 35. Ne4 {[%emt 0:03:11]} Qe7 {[%emt 0:00:16]} 36. Qg3 {[%emt 0:02:46]} Kf8 {[%emt 0:09:17]} 37. Ncd6 {[%emt 0:02:40]} Bxe4 {[%emt 0:05:04]} 1/2-1/2

[Event "Festival Groningen-A 2024"]
[Site "Groningen"]
[Date "2024.12.28"]
[Round "7.19"]
[White "Grooten, Tommy"]
[Black "Dolzhykova, Kateryna"]
[Result "0-1"]
[ECO "A15"]
[WhiteElo "2153"]
[BlackElo "2322"]
[Annotator "RC"]
[PlyCount "48"]
[EventDate "2024.12.21"]
[EventType "swiss"]
[EventCountry "NED"]
[SourceTitle "playchess.com"]
[Source "ChessBase"]
[SourceQuality "1"]
[TimeControl "40/5400+30:1800+30"]

1. Nf3 {[%emt 0:00:16]} Nf6 {[%emt 0:00:08]} 2. c4 {[%emt 0:00:45]} g6 {[%emt 0:00:11]} 3. b4 {[%emt 0:02:01]} a5 {[%emt 0:06:20]} 4. b5 {[%emt 0:07:59]} Bg7 {[%emt 0:00:06]} 5. Bb2 {[%emt 0:00:08]} a4 {[%emt 0:02:05]} 6. a3 {[%emt 0:09:08]} c6 {[%emt 0:01:01]} 7. Nc3 {[%emt 0:02:25]} Qa5 {[%emt 0:01:43]} 8. Qc2 {[%emt 0:03:37]} O-O {[%emt 0:00:36]} 9. e4 {[%emt 0:09:23]} Rd8 {[%emt 0:09:43]} 10. d4 {[%emt 0:10:28]} d5 {[%emt 0:08:28]} 11. cxd5 {[%emt 0:00:18]} cxd5 {[%emt 0:00:50]} 12. e5 {[%emt 0:00:24]} Nh5 {[%emt 0:08:33]} 13. g3 {[%emt 0:06:22]} f6 {[%emt 0:02:13]} 14. O-O-O {[%emt 0:05:26]} Bg4 {[%emt 0:08:49]} 15. Be2 {[%emt 0:01:03]} e6 {[%emt 0:01:20]} 16. h3 {[%emt 0:06:50]} Bxf3 {[%emt 0:05:53]} 17. Bxf3 {[%emt 0:00:03]} fxe5 {[%emt 0:00:06]} 18. dxe5 {[%emt 0:02:44]} Nd7 {[%emt 0:00:12]} 19. Kb1 {[%emt 0:09:28]} Nxe5 {[%emt 0:01:24]} 20. Bxh5 {[%emt 0:04:02]} gxh5 {[%emt 0:00:47]} 21. Qe2 {[%emt 0:03:00]} Nc4 {[%emt 0:05:08]} 22. Nxd5 {[%emt 0:06:40]} Nxb2 {[%emt 0:04:36]} 23. Ne7+ {[%emt 0:00:31]} Kh8 {[%emt 0:01:23]} 24. Rxd8+ {[%emt 0:00:12]} Qxd8 {[%emt 0:00:52]} 0-1

[Event "Festival Groningen-A 2024"]
[Site "Groningen"]
[Date "2024.12.28"]
[Round "7.20"]
[White "Boeren, Jurriaan"]
[Black "Weber, Samuel"]
[Result "0-1"]
[ECO "C90"]
[WhiteElo "2147"]
[BlackElo "2263"]
[Annotator "RC"]
[PlyCount "70"]
[EventDate "2024.12.21"]
[EventType "swiss"]
[EventCountry "NED"]
[SourceTitle "playchess.com"]
[Source "ChessBase"]
[SourceQuality "1"]
[TimeControl "40/5400+30:1800+30"]

1. e4 {[%emt 0:00:06]} e5 {[%emt 0:00:07]} 2. Nf3 {[%emt 0:00:04]} Nc6 {[%emt 0:00:09]} 3. Bb5 {[%emt 0:00:41]} a6 {[%emt 0:00:16]} 4. Ba4 {[%emt 0:00:07]} Nf6 {[%emt 0:00:06]} 5. O-O {[%emt 0:00:04]} Be7 {[%emt 0:00:07]} 6. Re1 {[%emt 0:00:06]} b5 {[%emt 0:00:06]} 7. Bb3 {[%emt 0:00:05]} d6 {[%emt 0:00:05]} 8. a4 {[%emt 0:02:29]} Bd7 {[%emt 0:02:09]} 9. c3 {[%emt 0:06:08]} O-O {[%emt 0:00:21]} 10. d4 {[%emt 0:02:53]} Bg4 {[%emt 0:00:10]} 11. Be3 {[%emt 0:04:10]} Na5 {[%emt 0:01:54]} 12. Bc2 {[%emt 0:07:59]} Nc4 {[%emt 0:00:11]} 13. Bc1 {[%emt 0:01:51]} exd4 {[%emt 0:00:07]} 14. cxd4 {[%emt 0:00:58]} d5 {[%emt 0:00:07]} 15. e5 {[%emt 0:01:40]} Ne4 {[%emt 0:00:26]} 16. Nc3 {[%emt 0:09:29]} Nxc3 {[%emt 0:00:08]} 17. bxc3 {[%emt 0:00:04]} Bh5 {[%emt 0:00:08]} 18. Bf5 {[%emt 0:09:56]} b4 {[%emt 0:02:49]} 19. Qd3 {[%emt 0:08:48]} b3 {[%emt 0:14:13]} 20. Rb1 {[%emt 0:05:01]} Rb8 {[%emt 0:01:02]} 21. Re2 {[%emt 0:03:20]} Bg6 {[%emt 0:14:57]} 22. e6 {[%emt 0:04:45]} Bxf5 {[%emt 0:06:16]} 23. Qxf5 {[%emt 0:00:22]} f6 {[%emt 0:00:19]} 24. h4 {[%emt 0:10:48]} g6 {[%emt 0:03:40]} 25. Qd3 {[%emt 0:02:03]} Kh8 {[%emt 0:02:46]} 26. Bh6 {[%emt 0:02:13]} Rg8 {[%emt 0:01:19]} 27. Nd2 {[%emt 0:02:03]} g5 {[%emt 0:09:03]} 28. hxg5 {[%emt 0:05:19]} fxg5 {[%emt 0:06:19]} 29. Rxb3 {[%emt 0:03:01]} Rg6 {[%emt 0:10:13]} 30. Rxb8 {[%emt 0:02:28]} Qxb8 {[%emt 0:00:32]} 31. Nxc4 {[%emt 0:01:34]} dxc4 {[%emt 0:00:09]} 32. Qh3 {[%emt 0:00:27]} Qb1+ {[%emt 0:04:28]} 33. Kh2 {[%emt 0:00:02]} Qf1 {[%emt 0:02:46]} 34. Re5 {[%emt 0:05:10]} Qxf2 {[%emt 0:01:09]} 35. Rd5 {[%emt 0:00:54]} Qf6 {[%emt 0:05:47]} 0-1

[Event "Festival Groningen-A 2024"]
[Site "Groningen"]
[Date "2024.12.28"]
[Round "7.21"]
[White "Mohammed, Dilshad"]
[Black "Bakija, Alan"]
[Result "1/2-1/2"]
[ECO "C41"]
[WhiteElo "2078"]
[BlackElo "2233"]
[Annotator "RC"]
[PlyCount "106"]
[EventDate "2024.12.21"]
[EventType "swiss"]
[EventCountry "NED"]
[SourceTitle "playchess.com"]
[Source "ChessBase"]
[SourceQuality "1"]
[TimeControl "40/5400+30:1800+30"]

1. Nf3 {[%emt 0:00:03]} d6 {[%emt 0:14:14]} 2. d4 {[%emt 0:01:12]} Nf6 {[%emt 0:00:06]} 3. Nc3 {[%emt 0:00:25]} Nbd7 {[%emt 0:00:21]} 4. e4 {[%emt 0:00:10]} e5 {[%emt 0:00:04]} 5. Bc4 {[%emt 0:00:22]} Be7 {[%emt 0:00:06]} 6. h3 {[%emt 0:02:20]} h6 {[%emt 0:06:48]} 7. Be3 {[%emt 0:00:34]} c6 {[%emt 0:00:35]} 8. a4 {[%emt 0:00:22]} Qc7 {[%emt 0:06:59]} 9. a5 {[%emt 0:02:34]} Nf8 {[%emt 0:04:34]} 10. Qe2 {[%emt 0:12:04]} Be6 {[%emt 0:04:44]} 11. Bxe6 {[%emt 0:04:12]} Nxe6 {[%emt 0:02:25]} 12. d5 {[%emt 0:00:47]} cxd5 {[%emt 0:16:52]} 13. exd5 {[%emt 0:02:05]} Nc5 {[%emt 0:00:08]} 14. Nb5 {[%emt 0:01:33]} Qc8 {[%emt 0:00:12]} 15. Nxe5 {[%emt 0:08:47]} O-O {[%emt 0:07:07]} 16. Nc4 {[%emt 0:03:22]} Nxd5 {[%emt 0:01:31]} 17. Nbxd6 {[%emt 0:04:09]} Qc6 {[%emt 0:05:10]} 18. Nf5 {[%emt 0:03:13]} Bf6 {[%emt 0:00:13]} 19. O-O {[%emt 0:00:37]} Rfe8 {[%emt 0:00:58]} 20. Qh5 {[%emt 0:05:50]} g6 {[%emt 0:11:03]} 21. Nxh6+ {[%emt 0:02:30]} Kg7 {[%emt 0:08:11]} 22. Qf3 {[%emt 0:02:39]} Ne4 {[%emt 0:01:45]} 23. Ng4 {[%emt 0:27:04]} Qxc4 {[%emt 0:00:19]} 24. Bh6+ {[%emt 0:00:21]} Kg8 {[%emt 0:03:02]} 25. c3 {[%emt 0:01:09]} Bh8 {[%emt 0:00:30]} 26. Rad1 {[%emt 0:02:14]} Rad8 {[%emt 0:03:52]} 27. Rfe1 {[%emt 0:02:59]} f5 {[%emt 0:00:27]} 28. Nh2 {[%emt 0:01:58]} Kh7 {[%emt 0:00:25]} 29. Bc1 {[%emt 0:00:22]} Be5 {[%emt 0:01:16]} 30. Nf1 {[%emt 0:00:33]} Ndf6 {[%emt 0:00:39]} 31. Qe3 {[%emt 0:00:26]} f4 {[%emt 0:00:47]} 32. Qxa7 {[%emt 0:00:16]} Qc6 {[%emt 0:00:24]} 33. Rxd8 {[%emt 0:02:10]} Rxd8 {[%emt 0:00:01]} 34. Nh2 {[%emt 0:00:01]} Bb8 {[%emt 0:01:07]} 35. Qb6 {[%emt 0:00:37]} Qxb6 {[%emt 0:00:17]} 36. axb6 {[%emt 0:00:02]} Nc5 {[%emt 0:00:43]} 37. Nf3 {[%emt 0:00:42]} Kg8 {[%emt 0:00:06]} 38. Bd2 {[%emt 0:04:29]} Nb3 {[%emt 0:00:49]} 39. Re2 {[%emt 0:01:45]} Rd6 {[%emt 0:00:06]} 40. c4 {[%emt 0:00:39]} Rxb6 {[%emt 0:00:43]} 41. Bc3 {[%emt 0:30:20]} Kf8 {[%emt 0:11:03]} 42. Ng5 {[%emt 0:00:00]} Nc1 {[%emt 0:05:37]} 43. Rc2 {[%emt 0:00:00]} Na2 {[%emt 0:04:55]} 44. Bxf6 {[%emt 0:00:00]} Rxf6 {[%emt 0:00:04]} 45. Nh7+ {[%emt 0:00:00]} Kf7 {[%emt 0:00:03]} 46. Nxf6 {[%emt 0:00:00]} Kxf6 {[%emt 0:00:07]} 47. Rd2 {[%emt 0:00:00]} Be5 {[%emt 0:01:46]} 48. Rd5 {[%emt 0:00:00]} b6 {[%emt 0:00:50]} 49. Kf1 {[%emt 0:00:00]} Nc1 {[%emt 0:00:49]} 50. Rd1 {[%emt 0:00:00]} Nb3 {[%emt 0:00:27]} 51. Rd3 {[%emt 0:00:00]} Nc1 {[%emt 0:02:02]} 52. Rd1 {[%emt 0:00:00]} Nb3 {[%emt 0:00:14]} 53. Rd3 {[%emt 0:00:00]} Nc1 {[%emt 0:00:59]} 1/2-1/2

[Event "Festival Groningen-A 2024"]
[Site "Groningen"]
[Date "2024.12.28"]
[Round "7.22"]
[White "Grooten, Herman"]
[Black "Kazarjan, Gachatur"]
[Result "0-1"]
[ECO "E17"]
[WhiteElo "2183"]
[BlackElo "2067"]
[Annotator "RC"]
[PlyCount "180"]
[EventDate "2024.12.21"]
[EventType "swiss"]
[EventCountry "NED"]
[SourceTitle "playchess.com"]
[Source "ChessBase"]
[SourceQuality "1"]
[TimeControl "40/5400+30:1800+30"]

1. Nf3 {[%emt 1:31:00]} d5 {[%emt 0:00:06]} 2. c4 {[%emt 0:00:00]} e6 {[%emt 0:00:07]} 3. g3 {[%emt 0:00:00]} Nf6 {[%emt 0:00:06]} 4. Bg2 {[%emt 0:00:00]} Be7 {[%emt 0:00:06]} 5. b3 {[%emt 0:00:00]} O-O {[%emt 0:00:08]} 6. O-O {[%emt 0:00:00]} b6 {[%emt 0:02:25]} 7. Bb2 {[%emt 0:00:00]} Bb7 {[%emt 0:03:13]} 8. cxd5 {[%emt 0:00:00]} exd5 {[%emt 0:00:23]} 9. d4 {[%emt 0:00:00]} Nbd7 {[%emt 0:01:10]} 10. Nc3 {[%emt 0:00:00]} c5 {[%emt 0:06:00]} 11. dxc5 {[%emt 0:00:00]} Nxc5 {[%emt 0:06:10]} 12. Nb5 {[%emt 0:00:00]} Nfe4 {[%emt 0:08:47]} 13. Rc1 {[%emt 0:00:00]} Qd7 {[%emt 0:00:36]} 14. Nbd4 {[%emt 0:00:00]} Bf6 {[%emt 0:00:13]} 15. Rc2 {[%emt 0:00:00]} Rac8 {[%emt 0:04:59]} 16. Qb1 {[%emt 0:00:00]} Rc7 {[%emt 0:06:14]} 17. Rd1 {[%emt 0:00:00]} Re8 {[%emt 0:07:13]} 18. e3 {[%emt 0:00:00]} Ba6 {[%emt 0:03:05]} 19. Ne1 {[%emt 0:00:00]} h6 {[%emt 0:00:37]} 20. Ndf3 {[%emt 0:00:00]} Rec8 {[%emt 0:05:12]} 21. Bxf6 {[%emt 0:00:00]} Nxf6 {[%emt 0:01:18]} 22. Nd4 {[%emt 0:00:00]} Nce4 {[%emt 0:03:31]} 23. Rdc1 {[%emt 0:00:00]} Rc5 {[%emt 0:06:54]} 24. Qb2 {[%emt 0:00:00]} R8c7 {[%emt 0:03:56]} 25. b4 {[%emt 0:00:00]} Rxc2 {[%emt 0:04:30]} 26. Rxc2 {[%emt 0:00:00]} Bc4 {[%emt 0:04:30]} 27. Nef3 {[%emt 0:00:00]} Qc8 {[%emt 0:10:15]} 28. Qc1 {[%emt 0:00:00]} Ng4 {[%emt 0:07:05]} 29. h3 {[%emt 0:01:06]} Ngxf2 {[%emt 0:01:38]} 30. Rxf2 {[%emt 0:01:27]} Bd3 {[%emt 0:02:33]} 31. Qb2 {[%emt 0:00:06]} Rc1+ {[%emt 0:00:05]} 32. Kh2 {[%emt 0:04:20]} Nxg3 {[%emt 0:01:16]} 33. Ne5 {[%emt 0:01:34]} Qc7 {[%emt 0:01:12]} 34. Nb3 {[%emt 0:02:31]} Rc3 {[%emt 0:00:17]} 35. Nxd3 {[%emt 0:01:28]} Rxd3 {[%emt 0:00:25]} 36. Kg1 {[%emt 0:02:47]} Rxe3 {[%emt 0:01:36]} 37. Bxd5 {[%emt 0:00:15]} Re7 {[%emt 0:00:32]} 38. Qd2 {[%emt 0:01:48]} Nh5 {[%emt 0:00:34]} 39. Bg2 {[%emt 0:00:44]} Re5 {[%emt 0:00:30]} 40. Nd4 {[%emt 0:00:23]} Rg5 {[%emt 0:00:30]} 41. Nf5 {[%emt 0:30:59]} Qe5 {[%emt 0:06:32]} 42. Qd8+ {[%emt 0:00:00]} Kh7 {[%emt 0:00:05]} 43. Qd3 {[%emt 0:00:00]} Nf4 {[%emt 0:02:10]} 44. Rxf4 {[%emt 0:00:00]} Qxf4 {[%emt 0:00:53]} 45. Ne3+ {[%emt 0:00:00]} g6 {[%emt 0:00:57]} 46. Nd5 {[%emt 0:00:00]} Qe5 {[%emt 0:03:46]} 47. a4 {[%emt 0:00:00]} Rg3 {[%emt 0:01:48]} 48. Qc4 {[%emt 0:00:00]} Kg7 {[%emt 0:01:56]} 49. b5 {[%emt 0:00:00]} h5 {[%emt 0:01:19]} 50. Nf4 {[%emt 0:00:00]} Rc3 {[%emt 0:00:53]} 51. Qf1 {[%emt 0:00:00]} Ra3 {[%emt 0:01:20]} 52. Qc4 {[%emt 0:00:00]} h4 {[%emt 0:06:12]} 53. Ne2 {[%emt 0:00:19]} Qa1+ {[%emt 0:02:31]} 54. Kf2 {[%emt 0:00:44]} Rxa4 {[%emt 0:01:09]} 55. Qc3+ {[%emt 0:00:18]} Qxc3 {[%emt 0:00:21]} 56. Nxc3 {[%emt 0:00:05]} Ra3 {[%emt 0:00:08]} 57. Ne4 {[%emt 0:00:59]} f5 {[%emt 0:01:21]} 58. Nd6 {[%emt 0:00:22]} a6 {[%emt 0:00:51]} 59. bxa6 {[%emt 0:00:51]} Rxa6 {[%emt 0:00:05]} 60. Bf1 {[%emt 0:00:18]} Ra3 {[%emt 0:00:24]} 61. Nc4 {[%emt 0:00:25]} Rb3 {[%emt 0:00:39]} 62. Nd2 {[%emt 0:00:04]} Rb4 {[%emt 0:00:12]} 63. Ke3 {[%emt 0:00:26]} g5 {[%emt 0:00:20]} 64. Bd3 {[%emt 0:00:23]} Kf6 {[%emt 0:00:25]} 65. Nf3 {[%emt 0:00:10]} Rb3 {[%emt 0:00:23]} 66. Nd4 {[%emt 0:00:13]} Ra3 {[%emt 0:00:44]} 67. Nb5 {[%emt 0:00:25]} Ra1 {[%emt 0:00:44]} 68. Nd4 {[%emt 0:00:26]} Re1+ {[%emt 0:00:30]} 69. Kf2 {[%emt 0:01:16]} Re5 {[%emt 0:00:20]} 70. Nf3 {[%emt 0:00:36]} Rd5 {[%emt 0:00:13]} 71. Ke3 {[%emt 0:00:20]} b5 {[%emt 0:01:37]} 72. Bc2 {[%emt 0:00:29]} b4 {[%emt 0:00:11]} 73. Nd2 {[%emt 0:00:45]} Rc5 {[%emt 0:01:26]} 74. Bd3 {[%emt 0:00:19]} Rc1 {[%emt 0:00:19]} 75. Kd4 {[%emt 0:02:55]} Rd1 {[%emt 0:00:57]} 76. Nc4 {[%emt 0:00:33]} g4 {[%emt 0:03:17]} 77. Ne3 {[%emt 0:00:28]} g3 {[%emt 0:00:30]} 78. Ng2 {[%emt 0:00:50]} Kg5 {[%emt 0:00:14]} 79. Ke3 {[%emt 0:00:11]} b3 {[%emt 0:00:30]} 80. Ke2 {[%emt 0:00:25]} Rh1 {[%emt 0:00:19]} 81. Ne1 {[%emt 0:00:34]} Rh2+ {[%emt 0:00:59]} 82. Kf1 {[%emt 0:00:34]} Rxh3 {[%emt 0:00:24]} 83. Nf3+ {[%emt 0:00:22]} Kf4 {[%emt 0:00:05]} 84. Kg2 {[%emt 0:00:07]} b2 {[%emt 0:00:39]} 85. Bb1 {[%emt 0:00:39]} Rh1 {[%emt 0:00:31]} 86. Kxh1 {[%emt 0:02:46]} Kxf3 {[%emt 0:00:07]} 87. Kg1 {[%emt 0:00:23]} h3 {[%emt 0:00:36]} 88. Bxf5 {[%emt 0:00:24]} h2+ {[%emt 0:00:14]} 89. Kh1 {[%emt 0:00:05]} g2+ {[%emt 0:00:10]} 90. Kxh2 {[%emt 0:00:05]} Kf2 {[%emt 0:00:03]} 0-1

[Event "Festival Groningen-A 2024"]
[Site "Groningen"]
[Date "2024.12.28"]
[Round "7.23"]
[White "Mareau, Timothe"]
[Black "Zecha, Oscar"]
[Result "1-0"]
[ECO "C23"]
[WhiteElo "2168"]
[BlackElo "2134"]
[Annotator "RC"]
[PlyCount "121"]
[EventDate "2024.12.21"]
[EventType "swiss"]
[EventCountry "NED"]
[SourceTitle "playchess.com"]
[Source "ChessBase"]
[SourceQuality "1"]
[TimeControl "40/5400+30:1800+30"]

1. e4 {[%emt 0:00:10]} e5 {[%emt 0:00:14]} 2. Bc4 {[%emt 0:00:16]} Nf6 {[%emt 0:02:04]} 3. Qf3 {[%emt 0:00:06]} Nc6 {[%emt 0:03:26]} 4. Ne2 {[%emt 0:01:05]} Bc5 {[%emt 0:01:10]} 5. d3 {[%emt 0:04:03]} d6 {[%emt 0:18:42]} 6. Bg5 {[%emt 0:04:10]} h6 {[%emt 0:05:21]} 7. Bxf6 {[%emt 0:00:31]} Qxf6 {[%emt 0:00:06]} 8. Qxf6 {[%emt 0:00:05]} gxf6 {[%emt 0:00:03]} 9. Ng3 {[%emt 0:01:30]} Nd4 {[%emt 0:03:16]} 10. Kd2 {[%emt 0:04:50]} b5 {[%emt 0:01:44]} 11. Bb3 {[%emt 0:10:20]} Nxb3+ {[%emt 0:02:21]} 12. axb3 {[%emt 0:00:01]} Bxf2 {[%emt 0:00:27]} 13. Nh5 {[%emt 0:00:02]} Bh4 {[%emt 0:03:57]} 14. h3 {[%emt 0:00:42]} Ke7 {[%emt 0:17:39]} 15. g4 {[%emt 0:00:55]} b4 {[%emt 0:09:21]} 16. Ke2 {[%emt 0:01:59]} Be6 {[%emt 0:05:06]} 17. Nd2 {[%emt 0:09:15]} c5 {[%emt 0:02:46]} 18. Ra6 {[%emt 0:01:58]} Bc8 {[%emt 0:05:23]} 19. Ra5 {[%emt 0:01:01]} Rg8 {[%emt 0:00:40]} 20. Nc4 {[%emt 0:01:45]} f5 {[%emt 0:09:49]} 21. exf5 {[%emt 0:13:04]} Bb7 {[%emt 0:00:01]} 22. Rha1 {[%emt 0:00:24]} a6 {[%emt 0:00:00]} 23. Ne3 {[%emt 0:03:30]} f6 {[%emt 0:00:57]} 24. c4 {[%emt 0:01:09]} bxc3 {[%emt 0:00:02]} 25. bxc3 {[%emt 0:00:07]} Bg5 {[%emt 0:02:01]} 26. b4 {[%emt 0:11:47]} Bxe3 {[%emt 0:00:49]} 27. Kxe3 {[%emt 0:00:05]} cxb4 {[%emt 0:00:12]} 28. Rb1 {[%emt 0:00:25]} Rgb8 {[%emt 0:02:57]} 29. Rxb4 {[%emt 0:00:18]} Bc8 {[%emt 0:00:29]} 30. Rc4 {[%emt 0:00:58]} Bd7 {[%emt 0:02:06]} 31. Ng3 {[%emt 0:02:18]} Rb5 {[%emt 0:01:10]} 32. Rca4 {[%emt 0:02:21]} Rc8 {[%emt 0:01:14]} 33. c4 {[%emt 0:01:46]} Rb2 {[%emt 0:00:49]} 34. Ra2 {[%emt 0:00:06]} Rb3 {[%emt 0:00:35]} 35. Ne4 {[%emt 0:01:08]} h5 {[%emt 0:00:31]} 36. Rxa6 {[%emt 0:00:37]} hxg4 {[%emt 0:00:17]} 37. hxg4 {[%emt 0:00:06]} Rg8 {[%emt 0:00:40]} 38. Rxd6 {[%emt 0:00:21]} Rb7 {[%emt 0:00:31]} 39. Nxf6 {[%emt 0:02:28]} Kxd6 {[%emt 0:00:31]} 40. Nxg8 {[%emt 0:00:08]} Bc6 {[%emt 0:00:30]} 41. Nf6 {[%emt 0:31:36]} Rb1 {[%emt 0:05:40]} 42. Ne4+ {[%emt 0:00:00]} Ke7 {[%emt 0:01:44]} 43. Ra5 {[%emt 0:00:00]} Re1+ {[%emt 0:00:15]} 44. Kf2 {[%emt 0:00:00]} Rd1 {[%emt 0:00:36]} 45. Rxe5+ {[%emt 0:00:00]} Kf8 {[%emt 0:00:28]} 46. Ke3 {[%emt 0:00:00]} Bb7 {[%emt 0:00:35]} 47. g5 {[%emt 0:00:00]} Bc6 {[%emt 0:00:26]} 48. f6 {[%emt 0:00:00]} Rg1 {[%emt 0:00:24]} 49. Kf4 {[%emt 0:00:00]} Rf1+ {[%emt 0:00:17]} 50. Kg4 {[%emt 0:00:00]} Bd7+ {[%emt 0:01:13]} 51. Kg3 {[%emt 0:00:00]} Rd1 {[%emt 0:01:26]} 52. Kf4 {[%emt 0:00:00]} Be8 {[%emt 0:01:45]} 53. Nd6 {[%emt 0:00:00]} Rf1+ {[%emt 0:00:13]} 54. Ke3 {[%emt 0:00:00]} Bg6 {[%emt 0:00:15]} 55. Rb5 {[%emt 0:00:00]} Be8 {[%emt 0:01:18]} 56. Rb8 {[%emt 0:00:00]} Kg8 {[%emt 0:00:18]} 57. f7+ {[%emt 0:00:00]} Kh7 {[%emt 0:01:12]} 58. fxe8=Q {[%emt 0:00:00]} Re1+ {[%emt 0:00:35]} 59. Kf4 {[%emt 0:00:00]} Rf1+ {[%emt 0:00:23]} 60. Ke5 {[%emt 0:00:00]} Rf5+ {[%emt 0:01:16]} 61. Kxf5 {[%emt 0:00:00]} 1-0

[Event "Festival Groningen-A 2024"]
[Site "Groningen"]
[Date "2024.12.28"]
[Round "7.24"]
[White "Ivanov, Dmytry"]
[Black "Kanis, Sierk"]
[Result "0-1"]
[ECO "D00"]
[WhiteElo "2072"]
[BlackElo "2116"]
[Annotator "NA RC"]
[PlyCount "80"]
[EventDate "2024.12.21"]
[EventType "swiss"]
[EventCountry "NED"]
[SourceTitle "playchess.com"]
[Source "ChessBase"]
[SourceQuality "1"]
[TimeControl "40/5400+30:1800+30"]

1. d4 {[%emt 0:01:57]} Nf6 {[%emt 0:00:09]} 2. Bg5 {[%emt 0:00:08]} d5 {[%emt 0:00:17]} 3. Bxf6 {[%emt 0:00:17]} exf6 {[%emt 0:01:08]} 4. e3 {[%emt 0:00:08]} Bd6 {[%emt 0:00:38]} 5. c4 {[%emt 0:00:17]} dxc4 {[%emt 0:01:46]} 6. Bxc4 {[%emt 0:00:36]} O-O {[%emt 0:00:40]} 7. Nc3 {[%emt 0:01:58]} a6 {[%emt 0:07:38] D00: 1 d4 d5: Unusual lines.} 8. Nge2 {[%emt 0:11:35]} b5 {[%emt 0:04:10]} 9. Bd5 {[%emt 0:00:41]} Ra7 {[%emt 0:01:10]} 10. a4 {[%emt 0:06:09]} b4 {[%emt 0:04:01]} 11. Ne4 {[%emt 0:01:44]} Be7 {[%emt 0:03:54]} 12. Qb3 {[%emt 0:03:02]} c6 {[%emt 0:03:44]} 13. Bc4 {[%emt 0:00:34]} Nd7 {[%emt 0:02:12]} 14. a5 {[%emt 0:01:19]} f5 {[%emt 0:00:56]} 15. N4g3 {[%emt 0:04:55]} Nf6 {[%emt 0:00:13]} 16. Nf4 {[%emt 0:05:26]} c5 {[%emt 0:05:25]} 17. d5 {[%emt 0:09:31]} Bd6 {[%emt 0:02:09]} 18. Nge2 {[%emt 0:02:23]} Re8 {[%emt 0:01:37]} 19. h4 {[%emt 0:10:16]} Ng4 {[%emt 0:04:31]} 20. Nd3 {[%emt 0:04:49]} Bd7 {[%emt 0:00:37]} 21. Qc2 {[%emt 0:06:41]} Qc7 {[%emt 0:02:15]} 22. b3 {[%emt 0:02:55]} Raa8 {[%emt 0:03:54]} (22... f4 $19 23. exf4 Bxf4) 23. g3 $17 {[%emt 0:02:38]} Ne5 {[%emt 0:11:50]} 24. Nxe5 {[%emt 0:01:49]} Bxe5 {[%emt 0:00:05]} 25. Ra2 {[%emt 0:03:20]} Qd6 {[%emt 0:02:01]} 26. O-O {[%emt 0:01:21]} g6 {[%emt 0:03:37]} 27. Rc1 {[%emt 0:00:24]} Qf6 {[%emt 0:01:21]} 28. Qd3 {[%emt 0:00:41]} h6 {[%emt 0:01:04]} 29. d6 {[%emt 0:03:23]} Bc6 {[%emt 0:03:04]} 30. Bxa6 {[%emt 0:01:34]} Be4 {[%emt 0:01:08]} 31. Qc4 {[%emt 0:00:29]} Qxd6 {[%emt 0:02:44]} 32. Bb5 {[%emt 0:00:13]} Red8 {[%emt 0:00:11]} 33. Kh2 {[%emt 0:02:07]} Rac8 {[%emt 0:03:45]} 34. a6 {[%emt 0:02:04]} Qe7 {[%emt 0:08:33]} 35. f4 {[%emt 0:04:10]} Bb8 {[%emt 0:00:11]} 36. Nd4 {[%emt 0:04:38]} Bd5 {[%emt 0:05:32]} 37. Qc2 {[%emt 0:00:24]} Qxe3 {[%emt 0:01:07]} 38. Nc6 {[%emt 0:02:22]} Bxc6 {[%emt 0:01:50]} 39. Qxc5 {[%emt 0:00:16]} Rd2+ {[%emt 0:02:47]} 40. Rxd2 {[%emt 0:00:39]} Qxd2+ {[%emt 0:00:07]} 0-1